bitfinex/quotes_ETHUSD_20241129
["timestamp","ask_amount","ask_price","bid_price","bid_amount"]
[1732858745187,0.55,3591.3,3590.7,3.423002]
[1732858745387,0.55,3591.3,3590.8,0.06666473]
[1732858745629,0.55,3591.3,3590.7,3.423002]
[1732858745833,0.55,3591.3,3590.9,0.06664489]
[1732858746125,0.55,3591.3,3590.8,0.06666473]
[1732858746359,0.55,3591.3,3591.0,0.06662504]
[1732858746652,0.55,3591.3,3591.1,0.0666052]
[1732858746852,0.55,3591.3,3590.8,2.78488]
[1732858747024,0.55,3591.3,3591.2,0.06658536]
[1732858747207,0.55,3591.3,3590.8,2.78488]
[1732858747407,0.55,3591.3,3590.9,0.06664489]
[1732858748019,0.55,3591.1,3590.5,3.59542]
[1732858748227,0.55,3591.1,3591.0,0.06662504]
[1732858748409,0.55,3591.1,3590.5,3.59542]
[1732858748746,0.55,3591.1,3590.6,0.06670442]
[1732858748964,0.55,3591.1,3590.6,2.85173442]
[1732858750341,0.55,3591.1,3590.6,0.06670442]
[1732858750857,0.55,3591.1,3590.2,0.7799]
[1732858750858,0.55,3591.1,3590.7,0.06674819]
[1732858751054,0.55,3591.1,3590.5,2.7851]
[1732858751357,0.55,3591.1,3590.8,0.06672835]
[1732858751535,3.33468,3591.1,3590.8,0.06672835]
[1732858751847,3.33468,3591.1,3590.9,0.06673453]
[1732858752052,4.24086734,3591.1,3590.3,2.78526]
[1732858752209,3.0,3591.0,3590.3,2.78526]
[1732858752411,0.55,3590.9,3590.3,2.78526]
[1732858752848,0.55,3590.7,3590.0,2.78548]
[1732858753049,0.55,3590.4,3589.8,0.54910619]
[1732858753209,0.55,3590.2,3589.5,0.801]
[1732858753410,0.55,3590.0,3589.5,0.801]
[1732858753741,0.55,3590.2,3589.5,3.58684]
[1732858753948,0.55,3590.2,3589.5,4.22412]
[1732858754267,0.55,3590.2,3589.6,2.7858]
[1732858754921,0.55,3590.2,3589.7,2.78574]
[1732858755863,0.5641276,3590.2,3589.5,4.22414]
[1732858756033,0.55,3590.2,3589.6,2.7858]
[1732858756230,0.55,3590.2,3589.7,0.701004]
[1732858757263,0.5641276,3590.2,3589.7,0.701004]
[1732858758123,0.5641276,3590.2,3589.6,2.7858]
[1732858758969,0.55,3590.2,3589.4,2.78596]
[1732858759152,3.3495576,3590.2,3589.5,2.78589]
[1732858759356,3.3495576,3590.2,3589.6,2.78582]
[1732858759554,3.33543,3590.2,3589.6,2.78582]
[1732858759925,0.55,3590.2,3589.6,3.342991]
[1732858761497,0.5641276,3590.2,3589.6,3.342991]
[1732858761702,0.55,3590.2,3589.6,3.342991]
[1732858761899,3.55,3590.2,3589.6,3.342991]
[1732858762076,3.5641276,3590.2,3589.6,3.342991]
[1732858762278,3.55,3590.2,3589.6,3.342991]
[1732858763476,6.33536,3590.2,3589.6,0.557171]
[1732858763676,6.33536,3590.2,3589.7,0.06511669]
[1732858764003,6.33536,3590.2,3589.5,2.78589]
[1732858764387,6.33536,3590.2,3589.6,0.0653386]
[1732858770435,0.0141276,3590.1,3589.6,0.0653386]
[1732858770640,6.33536,3590.2,3589.6,0.0653386]
[1732858770843,0.0141276,3590.1,3589.6,0.0653386]
[1732858771342,1.2304294,3590.0,3589.6,0.0653386]
[1732858771545,1.2304294,3590.0,3589.2,3.61352]
[1732858771546,4.1318,3589.9,3589.2,2.78612]
[1732858771717,4.1318,3589.9,3589.7,0.06534184]
[1732858771909,4.1318,3589.9,3589.2,2.78612]
[1732858772126,4.1318,3589.9,3589.8,0.06532199]
[1732858772312,2.78575,3589.7,3589.0,2.78625]
[1732858772514,0.55,3589.6,3589.0,2.78625]
[1732858772729,0.55,3589.4,3589.0,2.78625]
[1732858773135,0.55,3589.4,3589.1,2.7862]
[1732858775052,0.55,3589.4,3588.9,3.56912]
[1732858775266,0.5641276,3589.4,3588.9,2.78632]
[1732858775447,0.55,3589.4,3588.9,2.78632]
[1732858775647,0.55,3589.4,3588.9,0.557284]
[1732858775965,0.55,3589.4,3589.1,2.78617]
[1732858776463,0.55,3589.4,3589.2,2.78611]
[1732858778525,0.55,3589.4,3589.3,0.06557718]
[1732858778726,0.55,3589.4,3589.2,2.78611]
[1732858778925,0.55,3589.4,3589.3,0.06557718]
[1732858779126,0.55,3589.4,3589.2,2.78611]
[1732858779355,0.55,3589.4,3589.3,0.06557718]
[1732858779537,0.55,3589.4,3589.2,2.78611]
[1732858779832,0.55,3589.4,3589.3,0.06557718]
[1732858780458,0.55,3589.4,3589.2,2.78611]
[1732858780871,0.55,3589.4,3589.3,0.06557718]
[1732858781081,0.55,3589.4,3589.2,2.78611]
[1732858781288,0.55,3589.4,3589.3,0.06557718]
[1732858781587,0.55,3589.4,3589.2,2.78611]
[1732858781791,0.55,3589.7,3589.3,0.06557718]
[1732858782090,2.78527,3590.4,3589.7,2.78574]
[1732858782091,0.7561,3590.4,3589.7,2.78574]
[1732858782590,0.7561,3590.4,3589.8,0.06547789]
[1732858783555,0.55,3590.2,3589.9,2.78552]
[1732858783762,0.55,3590.3,3589.9,3.41465182]
[1732858784090,0.55,3590.3,3589.9,0.06545803]
[1732858784391,0.55,3590.3,3589.7,2.78574]
[1732858784588,0.55,3590.3,3590.0,0.06543818]
[1732858784748,0.55,3590.3,3589.5,2.78589]
[1732858784951,0.55,3590.3,3590.1,0.06541833]
[1732858785257,0.55,3590.3,3589.8,2.78565]
[1732858785892,0.55,3590.3,3589.9,0.06545803]
[1732858788001,0.55,3590.3,3589.7,2.78574]
[1732858788204,0.55,3590.3,3590.0,0.06543818]
[1732858788363,0.55,3590.3,3589.7,2.78574]
[1732858789003,0.55,3590.3,3589.8,0.06547789]
[1732858789402,0.55,3590.3,3589.7,2.78574]
[1732858789562,0.55,3590.3,3589.9,2.8509081]
[1732858789758,0.55,3590.3,3589.9,2.78558]
[1732858789995,0.55,3590.3,3590.0,0.06530824]
[1732858795378,0.55,3590.3,3590.0,2.85079824]
[1732858798115,0.55,3590.3,3590.0,0.06530824]
[1732858798411,0.55,3590.6,3590.3,2.78526]
[1732858798984,0.8241,3590.9,3590.5,2.78506]
[1732858799314,0.8241,3590.9,3590.6,0.06518337]
[1732858799524,0.8241,3590.9,3590.3,0.8331]
[1732858799707,0.8241,3590.9,3590.5,2.78511]
[1732858800293,0.5641276,3590.8,3590.3,1.194944]
[1732858800526,0.5641276,3590.8,3590.4,2.78518]
[1732858800683,0.55,3590.8,3590.4,2.85034821]
[1732858800883,0.55,3590.8,3590.4,0.06516821]
[1732858801104,0.55,3590.8,3590.5,2.78511]
[1732858801417,0.55,3590.8,3590.5,2.85022661]
[1732858802318,0.5641276,3590.8,3590.5,2.85022661]
[1732858802524,0.55,3590.8,3590.5,2.85022661]
[1732858803738,0.55,3590.8,3590.6,2.78504]
[1732858804040,3.0,3591.1,3590.8,2.78486]
[1732858804041,0.55,3591.1,3590.8,2.78486]
[1732858804396,0.55,3591.1,3590.9,0.06503723]
[1732858805036,0.55,3591.3,3590.9,0.06503723]
[1732858805338,0.55,3591.3,3590.9,2.78479]
[1732858805642,0.55,3591.3,3591.0,0.06501739]
[1732858805852,0.55,3591.3,3591.1,2.78463]
[1732858805999,0.55,3591.6,3591.1,2.78463]
[1732858806205,0.55,3591.6,3591.2,0.06487668]
[1732858807496,0.55,3591.6,3591.2,2.84942668]
[1732858807931,0.55,3591.7,3591.3,2.7845]
[1732858808242,0.55,3591.7,3591.3,2.84920678]
[1732858808425,0.55,3591.7,3591.3,0.06470678]
[1732858808736,3.0141276,3591.6,3591.3,0.06470678]
[1732858808959,0.55,3591.5,3591.0,2.78472]
[1732858809243,0.55,3591.5,3590.8,3.59839]
[1732858809244,0.5641276,3591.6,3591.4,0.06468406]
[1732858809543,0.5641276,3591.6,3591.5,0.06466422]
[1732858809744,0.5641276,3591.6,3591.1,2.78463]
[1732858809903,0.5641276,3591.6,3591.5,0.06466422]
[1732858810099,0.5641276,3591.6,3591.1,2.78463]
[1732858810299,0.5641276,3591.6,3591.2,0.06472374]
[1732858812900,0.55,3591.6,3591.2,0.06472374]
[1732858813101,0.55,3591.6,3591.2,2.84928374]
[1732858813412,0.55,3591.6,3591.2,3.41269211]
[1732858813828,0.5641276,3591.6,3591.2,0.62813211]
[1732858814068,0.5641276,3591.6,3591.2,3.41270211]
[1732858814409,0.55,3591.6,3591.2,3.41270211]
[1732858814806,0.55,3591.8,3591.2,3.41269211]
[1732858815146,0.55,3591.8,3591.5,2.78434]
[1732858815522,1.2304294,3592.0,3591.6,0.06432402]
[1732858815523,0.55,3592.0,3591.6,0.06432402]
[1732858815724,3.0,3592.1,3591.6,2.78424]
[1732858815725,0.55,3592.1,3591.6,2.78424]
[1732858815927,0.55,3592.1,3591.7,0.06430418]
[1732858816419,1.2304294,3592.3,3591.7,3.66466418]
[1732858816621,0.8196,3592.4,3591.7,3.66466418]
[1732858816820,3.0,3592.3,3591.7,3.66466418]
[1732858817050,0.0141276,3592.2,3591.7,0.88050418]
[1732858817854,0.5641276,3592.2,3591.7,0.88050418]
[1732858819656,0.5641276,3592.2,3591.7,0.06430418]
[1732858819657,3.61374,3591.9,3591.7,0.06430418]
[1732858819827,0.55,3591.8,3591.2,2.78455]
[1732858820017,3.33412,3591.8,3591.2,3.422154]
[1732858820726,3.33412,3591.8,3591.2,2.78455]
[1732858820937,0.55,3591.8,3591.2,2.78455]
[1732858821462,0.55,3591.8,3591.3,2.7845]
[1732858821964,0.5641276,3591.8,3591.3,2.7845]
[1732858822716,0.55,3591.8,3591.3,2.7845]
[1732858823335,0.55,3591.8,3591.4,2.78442]
[1732858823531,0.55,3591.8,3591.4,2.84872599]
[1732858824343,0.55,3591.8,3591.4,0.06430599]
[1732858824523,0.55,3591.6,3591.0,3.59137]
[1732858824719,0.55,3591.6,3591.5,0.06428615]
[1732858824925,3.33427,3591.6,3591.0,3.59137]
[1732858825151,0.55,3591.6,3591.5,0.06428615]
[1732858825348,0.55,3591.6,3591.0,3.59137]
[1732858825570,0.55,3591.6,3591.5,0.06428615]
[1732858825733,0.55,3591.6,3591.1,2.78465]
[1732858825939,0.55,3591.6,3591.5,0.06428615]
[1732858826139,0.55,3591.6,3591.1,2.78465]
[1732858826350,0.55,3591.6,3591.5,0.06428615]
[1732858826550,0.5641276,3591.6,3591.0,3.59142]
[1732858826733,0.55,3591.6,3591.5,0.06428615]
[1732858826936,0.5641276,3591.6,3591.0,3.59142]
[1732858827139,0.5641276,3591.6,3591.5,0.06428615]
[1732858827140,0.55,3591.6,3591.5,0.06428615]
[1732858827454,0.55,3591.6,3591.0,4.22905]
[1732858827653,0.55,3591.6,3591.5,0.06428615]
[1732858827827,0.55,3591.6,3591.0,4.22905]
[1732858828027,0.55,3591.6,3591.5,0.06428615]
[1732858828671,0.55,3591.6,3591.0,3.59142]
[1732858828870,0.55,3591.6,3591.5,0.06428615]
[1732858829470,0.55,3591.6,3591.0,3.59142]
[1732858829943,0.5641276,3591.6,3591.1,2.84896551]
[1732858830142,0.55,3591.6,3591.2,2.78455]
[1732858830366,0.55,3591.6,3591.2,2.84889567]
[1732858831168,0.55,3591.8,3591.2,2.84889567]
[1732858831869,1.7804294,3591.4,3591.2,0.06434567]
[1732858832027,2.6051294,3591.4,3591.2,0.09298462]
[1732858832228,2.6051294,3591.4,3590.7,0.8015]
[1732858832474,2.6051294,3591.4,3591.3,0.09295578]
[1732858832675,2.6051294,3591.4,3590.7,0.8015]
[1732858832977,2.6051294,3591.4,3590.8,2.87794898]
[1732858833164,2.0551294,3591.4,3590.8,2.87794898]
[1732858834371,0.0141276,3591.3,3590.8,0.09305898]
[1732858834578,0.0141276,3591.3,3590.7,0.8015]
[1732858834579,2.7986476,3591.3,3590.7,0.8015]
[1732858834749,2.7986476,3591.3,3590.9,0.09303833]
[1732858834946,0.0141276,3591.3,3590.7,3.58645]
[1732858835282,0.0141276,3591.3,3591.0,0.09301769]
[1732858835478,0.0141276,3591.3,3590.7,3.58645]
[1732858835633,0.0141276,3591.3,3591.1,0.09299705]
[1732858835948,0.0141276,3591.3,3591.2,0.09297641]
[1732858836130,0.0141276,3591.3,3590.7,3.58645]
[1732858836331,0.0141276,3591.3,3591.2,0.09297641]
[1732858836532,0.0141276,3591.3,3590.7,3.58645]
[1732858836728,0.0141276,3591.3,3591.2,0.09297641]
[1732858836976,0.0141276,3591.3,3590.7,3.58645]
[1732858837193,0.55,3591.0,3590.2,2.78528]
[1732858837477,0.8046,3590.8,3590.2,2.78528]
[1732858837678,0.55,3590.6,3590.0,3.60624]
[1732858837881,2.78499,3590.7,3590.0,3.60624]
[1732858837882,0.55,3590.7,3590.0,3.60624]
[1732858838046,0.55,3590.7,3590.2,2.78535]
[1732858838249,0.55,3590.7,3590.1,2.78543]
[1732858838565,0.55,3590.7,3590.2,2.8786573]
[1732858838949,0.8046,3590.8,3590.2,0.0933473]
[1732858839144,0.55,3590.9,3590.2,2.8786773]
[1732858839453,0.55,3590.7,3590.2,0.0933473]
[1732858839978,0.55,3590.7,3590.3,0.09332665]
[1732858840132,0.55,3590.7,3590.1,2.7854]
[1732858840347,0.55,3590.7,3590.4,0.093306]
[1732858840547,3.33484,3590.9,3590.2,2.78533]
[1732858840786,0.7831,3591.0,3590.5,0.09328536]
[1732858840969,0.7831,3591.0,3590.4,2.78514]
[1732858841179,0.7831,3591.0,3590.6,0.09326471]
[1732858841345,0.7831,3591.0,3590.4,2.78514]
[1732858841547,0.7831,3591.0,3590.7,0.09324407]
[1732858841771,0.7831,3591.0,3590.4,2.78514]
[1732858841967,0.7831,3591.0,3590.8,0.09322342]
[1732858842173,0.7831,3591.0,3590.4,2.78514]
[1732858842373,1.3331,3591.0,3590.9,0.09320278]
[1732858842554,1.3331,3591.0,3590.2,3.24284214]
[1732858842555,4.11783,3591.0,3590.2,2.78535]
[1732858842760,2.78482,3590.9,3590.2,2.78535]
[1732858843582,1.3331,3591.0,3590.3,2.78526]
[1732858844509,0.0141276,3590.9,3590.3,2.78526]
[1732858844780,1.3331,3591.0,3590.3,3.424409]
[1732858845150,0.0141276,3590.9,3590.3,3.424409]
[1732858845953,2.7989576,3590.9,3590.3,0.639149]
[1732858846187,2.7989576,3590.9,3590.2,2.78531]
[1732858846391,2.7989576,3590.9,3590.3,2.78526]
[1732858848197,3.33482,3590.9,3590.3,2.78526]
[1732858848877,0.7831,3591.0,3590.4,2.78518]
[1732858849467,0.5641276,3590.9,3590.1,2.78543]
[1732858849654,3.33485,3590.9,3590.2,3.145973]
[1732858851994,0.55,3590.7,3590.2,3.145973]
[1732858852198,0.5641276,3590.7,3590.2,3.145973]
[1732858852494,0.55,3590.7,3590.2,3.145973]
[1732858853497,0.55,3590.7,3590.3,2.78527]
[1732858853701,0.55,3590.7,3590.3,2.87870345]
[1732858853913,0.55,3590.7,3590.3,0.09343345]
[1732858854200,0.55,3590.7,3590.2,0.360623]
[1732858854402,0.55,3590.7,3590.4,0.0934128]
[1732858854604,0.55,3590.7,3590.2,0.360623]
[1732858854805,0.55,3590.7,3590.5,0.09339216]
[1732858855099,0.55,3590.7,3590.2,3.145963]
[1732858855308,0.5641276,3590.7,3590.6,0.09337151]
[1732858855517,0.5641276,3590.7,3590.2,0.360623]
[1732858855981,0.5641276,3590.7,3590.3,0.09343345]
[1732858856191,0.55,3590.7,3590.2,0.360623]
[1732858856401,0.55,3590.7,3590.4,0.0934128]
[1732858856698,0.55,3590.7,3590.2,3.145973]
[1732858856899,0.55,3590.7,3590.5,0.09339216]
[1732858857099,0.5641276,3590.7,3590.2,3.145973]
[1732858857272,0.5641276,3590.7,3590.6,0.09337151]
[1732858857479,0.5641276,3590.7,3590.0,2.78546]
[1732858857706,1.3836276,3590.7,3590.6,0.09337151]
[1732858857869,1.3836276,3590.7,3590.0,2.78546]
[1732858858075,1.3836276,3590.7,3590.6,0.09337151]
[1732858858387,0.55,3590.5,3590.0,2.7855]
[1732858858604,3.0,3590.8,3590.2,2.78533]
[1732858858777,0.55,3590.8,3590.3,2.78526]
[1732858859171,0.55,3590.8,3590.4,2.78518]
[1732858859513,0.55,3590.8,3590.4,3.417461]
[1732858859713,0.55,3590.8,3590.4,2.78518]
[1732858861873,0.55,3590.8,3590.2,2.78535]
[1732858862274,0.0141276,3590.7,3590.2,2.78535]
[1732858862473,0.7887,3590.6,3590.2,2.78535]
[1732858863207,0.5641276,3590.5,3590.0,2.78551]
[1732858863409,0.55,3590.5,3589.8,2.78566]
[1732858863609,3.33513,3590.5,3589.8,2.78566]
[1732858864793,0.55,3590.5,3590.0,2.78551]
[1732858866130,0.55,3590.5,3589.6,3.60632]
[1732858866431,0.55,3590.5,3589.9,2.78557]
[1732858867191,0.55,3590.5,3589.7,3.146372]
[1732858867432,0.55,3590.5,3589.9,2.78556]
[1732858867805,0.55,3590.3,3589.7,2.78574]
[1732858868209,3.3494276,3590.3,3589.6,2.7858]
[1732858868439,0.55,3590.3,3589.7,2.78573]
[1732858868747,0.55,3590.3,3589.8,2.78566]
[1732858868895,0.55,3590.3,3589.9,0.0937556]
[1732858871044,0.55,3590.3,3589.9,2.8792856]
[1732858871248,0.7542,3590.4,3590.0,2.78548]
[1732858871430,0.7542,3590.4,3590.0,2.87930731]
[1732858874218,0.0141276,3590.3,3590.0,0.09382731]
[1732858874425,3.53941,3590.4,3589.8,2.78566]
[1732858874609,0.7542,3590.4,3590.1,0.09380666]
[1732858874809,0.7542,3590.4,3589.8,2.78566]
[1732858875019,0.7542,3590.4,3590.2,0.09377157]
[1732858875225,0.7542,3590.4,3589.9,2.78557]
[1732858875647,0.7542,3590.4,3590.0,0.09381576]
[1732858876462,0.0141276,3590.3,3590.0,0.09381576]
[1732858876752,0.7542,3590.4,3590.0,0.09381576]
[1732858876947,0.7542,3590.4,3589.7,3.57824]
[1732858877112,0.7542,3590.4,3589.7,4.214653]
[1732858877313,0.0141276,3590.3,3589.8,0.09385707]
[1732858877555,0.0141276,3590.3,3589.7,3.422153]
[1732858877759,0.0141276,3590.3,3589.8,0.09385707]
[1732858877957,0.7542,3590.4,3589.8,2.78566]
[1732858878112,0.0141276,3590.3,3589.8,2.78566]
[1732858878450,0.0141276,3590.3,3589.9,0.09383641]
[1732858879325,0.7542,3590.4,3589.9,0.09383641]
[1732858879750,3.3494576,3590.3,3589.9,0.09383641]
[1732858880050,3.3494576,3590.3,3589.6,2.78581]
[1732858880248,0.7542,3590.4,3590.0,0.09389949]
[1732858880553,0.7542,3590.4,3590.1,0.09387884]
[1732858880756,0.7542,3590.4,3589.8,2.78564]
[1732858881227,0.7542,3590.4,3589.9,0.09392303]
[1732858883252,0.0141276,3590.3,3589.9,0.09392303]
[1732858883447,0.7542,3590.4,3589.9,0.09392303]
[1732858883652,3.53941,3590.4,3589.9,0.09392303]
[1732858883857,0.0141276,3590.3,3589.9,0.09392303]
[1732858884013,0.0141276,3590.3,3589.7,2.78569]
[1732858884214,0.0141276,3590.3,3590.0,0.09390238]
[1732858884448,0.0141276,3590.3,3589.7,3.49804499]
[1732858884656,0.0141276,3590.3,3590.1,0.09388172]
[1732858884855,0.0141276,3590.3,3589.7,2.78569]
[1732858885060,0.0141276,3590.3,3590.2,0.09386107]
[1732858885260,0.7542,3590.4,3590.2,0.09386107]
[1732858885481,0.7542,3590.4,3589.9,2.78555]
[1732858885680,1.3042,3590.4,3590.3,0.09384042]
[1732858886137,1.3042,3590.4,3589.9,2.78555]
[1732858886480,1.3042,3590.4,3590.0,0.09390238]
[1732858887354,0.0141276,3590.3,3590.0,0.09390238]
[1732858887552,0.0141276,3590.3,3589.7,2.78568]
[1732858887751,0.0141276,3590.3,3589.8,0.09394368]
[1732858887989,0.788,3590.2,3589.5,2.78584]
[1732858888138,0.7781,3590.0,3589.9,0.09392303]
[1732858888333,1.3281,3590.0,3589.3,2.78604]
[1732858888538,0.0141276,3589.9,3589.4,2.87998053]
[1732858890978,1.3281,3590.0,3589.5,2.78585]
[1732858891175,1.3281,3590.0,3589.5,2.87990184]
[1732858892082,0.55,3589.9,3589.5,0.09405184]
[1732858892259,3.33559,3589.9,3589.5,0.09405184]
[1732858892582,3.33559,3589.9,3589.6,0.09403119]
[1732858892985,3.33559,3589.9,3589.3,2.78605]
[1732858893189,3.33559,3589.9,3589.7,0.09401053]
[1732858893500,3.33559,3589.9,3589.3,2.78605]
[1732858893695,3.33559,3589.9,3589.8,0.09412555]
[1732858894005,0.55,3589.9,3589.8,0.09412844]
[1732858894326,0.55,3589.9,3589.3,2.78605]
[1732858894797,0.55,3589.9,3589.4,0.09421395]
[1732858895384,0.55,3589.9,3589.4,2.88018395]
[1732858896223,0.7781,3590.0,3589.8,2.78566]
[1732858896515,1.3073,3590.3,3589.8,2.78566]
[1732858896728,0.7573,3590.3,3589.9,2.87968067]
[1732858903611,0.7573,3590.3,3589.9,0.09411067]
[1732858903924,0.8315,3590.5,3590.1,2.78541]
[1732858904287,0.8315,3590.5,3590.2,0.09398522]
[1732858905726,0.8315,3590.5,3589.9,2.78556]
[1732858905934,0.8315,3590.5,3590.3,0.09396457]
[1732858906087,0.8315,3590.5,3589.9,2.78556]
[1732858906285,1.3815,3590.5,3590.4,0.09394392]
[1732858906522,1.3815,3590.5,3589.9,2.78556]
[1732858906934,1.3815,3590.5,3590.0,0.09402652]
[1732858907231,0.0141276,3590.4,3590.0,0.09402652]
[1732858907741,0.0141276,3590.4,3589.8,2.78566]
[1732858908234,0.0141276,3590.4,3589.9,0.09404717]
[1732858909317,1.3815,3590.5,3589.9,2.87956717]
[1732858909644,0.0141276,3590.4,3589.9,2.87956717]
[1732858911158,4.16663,3590.5,3589.9,2.87956717]
[1732858911450,0.0141276,3590.4,3589.9,2.87956717]
[1732858911738,0.8202,3590.1,3589.9,0.09404717]
[1732858911973,0.8202,3590.1,3589.5,2.78589]
[1732858912178,3.60565,3590.1,3589.3,2.78601]
[1732858912339,3.60565,3590.1,3589.6,0.09410914]
[1732858912540,3.60565,3590.1,3589.4,2.78597]
[1732858912870,3.60565,3590.1,3589.4,3.423013]
[1732858913037,3.60565,3590.1,3589.5,0.09412979]
[1732858913237,0.8202,3590.1,3589.5,2.88002979]
[1732858915048,0.0141276,3590.0,3589.5,2.88002979]
[1732858915863,0.8202,3590.1,3589.5,2.88002979]
[1732858916453,0.0141276,3590.0,3589.5,2.88002979]
[1732858916778,0.8202,3590.1,3589.5,2.88002979]
[1732858918345,0.8202,3590.1,3589.6,2.78577]
[1732858918555,0.8202,3590.1,3589.7,0.09418085]
[1732858921997,0.8202,3590.1,3589.8,0.09416019]
[1732858922293,0.48359994,3590.0,3589.5,2.7859]
[1732858922497,0.8202,3590.1,3589.9,0.09413954]
[1732858922663,0.8202,3590.1,3589.6,2.7858]
[1732858922871,0.8202,3590.1,3590.0,0.09411889]
[1732858923122,3.0,3590.5,3589.8,2.78565]
[1732858923393,0.7917,3590.4,3589.9,0.09413954]
[1732858924098,0.7917,3590.4,3589.9,2.78551]
[1732858924435,0.7917,3590.4,3590.0,0.09411889]
[1732858924595,0.7917,3590.4,3590.0,2.87962889]
[1732858924795,2.78439,3591.5,3590.0,0.74181678]
[1732858925096,0.7589,3590.8,3590.2,2.7853]
[1732858925473,0.7589,3590.8,3590.3,0.09401363]
[1732858925878,3.5438,3590.8,3590.1,2.78541]
[1732858926076,2.78505,3590.6,3590.4,0.09395545]
[1732858926250,2.7991576,3590.7,3590.0,3.5792]
[1732858926449,5.5841876,3590.7,3590.5,0.0939348]
[1732858926645,2.7991576,3590.7,3590.0,3.5792]
[1732858926871,3.3491576,3590.7,3590.6,0.09391415]
[1732858927090,2.78506,3590.6,3589.9,2.78552]
[1732858927263,0.5641276,3590.7,3590.1,2.7854]
[1732858927587,0.55,3590.7,3590.1,2.7854]
[1732858927775,0.55,3590.7,3590.2,0.09399386]
[1732858929065,0.0141276,3590.6,3590.2,0.09399386]
[1732858929569,0.55,3590.7,3590.2,0.09399386]
[1732858929982,0.0141276,3590.6,3590.2,0.09399386]
[1732858930604,0.0141276,3590.6,3589.9,2.78552]
[1732858930829,0.0141276,3590.6,3590.3,0.09397321]
[1732858931025,0.0141276,3590.6,3590.0,2.78549]
[1732858931231,0.0141276,3590.6,3590.4,0.09395256]
[1732858931524,0.0141276,3590.6,3590.1,2.78543]
[1732858931685,0.0141276,3590.6,3590.5,0.09380488]
[1732858931885,0.0141276,3590.6,3590.1,2.78543]
[1732858932406,0.0141276,3590.6,3590.2,0.09386682]
[1732858933035,0.55,3590.7,3590.2,0.09386682]
[1732858934228,0.0141276,3590.6,3590.2,0.09386682]
[1732858935424,0.0141276,3590.6,3590.3,0.09384617]
[1732858935929,0.0141276,3590.6,3590.0,2.78548]
[1732858936090,0.0141276,3590.6,3590.4,0.09382552]
[1732858936288,0.5479763,3590.6,3590.0,2.78548]
[1732858936487,3.33503,3590.7,3590.5,0.09380488]
[1732858936682,3.33503,3590.7,3590.1,2.78542]
[1732858936936,0.55,3590.7,3590.6,0.09378423]
[1732858937087,0.55,3590.7,3590.2,2.78535]
[1732858937384,0.55,3590.7,3590.3,0.09384617]
[1732858937583,0.55,3590.7,3590.2,3.60825]
[1732858937787,0.55,3590.7,3590.3,0.0938173]
[1732858938030,0.55,3590.7,3590.2,3.60825]
[1732858938239,0.55,3590.7,3590.4,0.09379666]
[1732858938445,0.55,3590.7,3590.2,3.60825]
[1732858938740,0.55,3590.7,3590.5,0.09377601]
[1732858938914,0.55,3590.7,3590.2,3.60825]
[1732858939113,0.55,3590.7,3590.6,0.09375536]
[1732858939314,0.55,3590.7,3590.2,3.60825]
[1732858939515,0.55,3590.7,3590.6,0.09375536]
[1732858939718,0.55,3590.7,3590.2,3.60825]
[1732858940049,0.55,3590.7,3590.3,2.78522]
[1732858940209,0.55,3590.7,3590.3,2.8790373]
[1732858940609,0.55,3590.7,3590.3,0.0938173]
[1732858940835,0.55,3590.7,3590.2,3.60825]
[1732858941033,0.0141276,3590.6,3590.4,0.09375335]
[1732858941235,0.0141276,3590.6,3590.3,0.093774]
[1732858941554,0.7944,3590.5,3590.0,2.78547]
[1732858942150,0.7944,3590.5,3590.1,0.09380664]
[1732858944527,0.7944,3590.5,3590.1,2.87923664]
[1732858944704,0.7944,3590.5,3590.1,0.09380664]
[1732858944903,0.7944,3590.5,3589.8,2.78565]
[1732858944904,0.55,3590.3,3589.8,2.78565]
[1732858945145,0.55,3590.3,3590.2,0.09378599]
[1732858945305,0.55,3590.3,3589.6,3.58732]
[1732858945507,0.55,3590.3,3590.2,0.09377446]
[1732858945728,0.55,3590.3,3589.7,2.78573]
[1732858946248,0.55,3590.3,3589.8,0.09385707]
[1732858946414,0.55,3590.3,3589.7,2.78573]
[1732858946620,0.55,3590.3,3589.8,0.09385707]
[1732858946851,0.55,3590.3,3589.7,2.78573]
[1732858947011,0.55,3590.3,3589.9,0.09383641]
[1732858947349,0.55,3590.3,3589.7,2.78573]
[1732858947350,0.0141276,3590.2,3589.7,2.78573]
[1732858947521,0.0141276,3590.2,3590.0,0.09381576]
[1732858947708,0.0141276,3590.2,3589.7,2.78573]
[1732858947906,0.0141276,3590.2,3590.1,0.09379511]
[1732858948108,0.0141276,3590.2,3589.7,2.78573]
[1732858948309,0.0141276,3590.2,3589.5,2.78589]
[1732858948310,1.7819737,3590.2,3590.1,0.09379511]
[1732858948623,1.7819737,3590.2,3589.3,2.78603]
[1732858948624,0.55,3590.0,3589.3,2.78603]
[1732858948811,0.5641276,3590.0,3589.3,2.78603]
[1732858949545,0.5641276,3590.0,3589.4,2.78595]
[1732858949908,0.8156,3589.8,3589.2,2.78608]
[1732858950208,0.0141276,3589.7,3589.2,2.78608]
[1732858950409,0.8297276,3589.8,3589.2,2.78608]
[1732858950606,0.8297276,3589.8,3589.0,2.78628]
[1732858950607,3.6154076,3589.8,3589.0,2.78628]
[1732858950845,3.60128,3589.8,3589.0,0.638922]
[1732858951143,3.60128,3589.8,3589.2,2.78611]
[1732858951563,0.8156,3589.8,3589.2,2.78608]
[1732858951768,0.8156,3589.8,3588.8,0.8165]
[1732858951926,0.55,3590.0,3589.4,2.78591]
[1732858952125,0.55,3589.9,3589.4,2.78591]
[1732858955066,0.55,3589.9,3589.3,0.829]